[Event "*** SCC Grand Prix: Titled Tuesday Blitz"]
[Site "Chess.com"]
[Date "2020.08.11"]
[Round "7"]
[White "Barmen_EV"]
[Black "Heineccius"]
[Result "0-1"]
[WhiteElo "2411"]
[BlackElo "2589"]
[TimeControl "180+1"]
[EndTime "11:17:53 PDT"]
[Termination "Heineccius won by checkmate"]

1. d4 {[%clk 0:03:00.9]} 1... Nf6 {[%clk 0:02:59.2]} 2. c4 {[%clk 0:03:00.7]}
2... e6 {[%clk 0:02:59.4]} 3. Nc3 {[%clk 0:03:01]} 3... Bb4 {[%clk 0:02:59.2]}
4. e3 {[%clk 0:03:00.9]} 4... O-O {[%clk 0:02:58]} 5. a3 {[%clk 0:03:01.8]} 5...
Bxc3+ {[%clk 0:02:56.8]} 6. bxc3 {[%clk 0:03:02.7]} 6... b6 {[%clk 0:02:52.8]}
7. Bd3 {[%clk 0:03:02.2]} 7... c5 {[%clk 0:02:50.1]} 8. Ne2 {[%clk 0:03:03.1]}
8... Nc6 {[%clk 0:02:45.4]} 9. e4 {[%clk 0:03:02.1]} 9... Ne8 {[%clk 0:02:44.1]}
10. f4 {[%clk 0:02:58.9]} 10... f5 {[%clk 0:02:41]} 11. e5 {[%clk 0:02:55.5]}
11... Ba6 {[%clk 0:02:35.8]} 12. d5 {[%clk 0:02:55.1]} 12... Na5 {[%clk
0:02:33.2]} 13. d6 {[%clk 0:02:54.1]} 13... Bxc4 {[%clk 0:02:27]} 14. Bxc4
{[%clk 0:02:53.7]} 14... Nxc4 {[%clk 0:02:27.9]} 15. Qd3 {[%clk 0:02:53.8]}
15... b5 {[%clk 0:02:25.3]} 16. a4 {[%clk 0:02:53.3]} 16... a6 {[%clk
0:02:23.6]} 17. O-O {[%clk 0:02:53.1]} 17... g6 {[%clk 0:02:18.6]} 18. Be3
{[%clk 0:02:45.5]} 18... Nb2 {[%clk 0:02:01.8]} 19. Qc2 {[%clk 0:02:44.8]} 19...
Nxa4 {[%clk 0:02:02.3]} 20. c4 {[%clk 0:02:41.6]} 20... Ng7 {[%clk 0:01:59.4]}
21. Rfb1 {[%clk 0:02:38.6]} 21... Qa5 {[%clk 0:01:51.2]} 22. Bxc5 {[%clk
0:02:11.7]} 22... Rfc8 {[%clk 0:01:45.5]} 23. Bb4 {[%clk 0:01:50.8]} 23... Qb6+
{[%clk 0:01:45.5]} 24. Kh1 {[%clk 0:01:48.9]} 24... Rxc4 {[%clk 0:01:44.5]} 25.
Qd1 {[%clk 0:01:33]} 25... Rac8 {[%clk 0:01:39.5]} 26. Bd2 {[%clk 0:01:30.7]}
26... Qc6 {[%clk 0:01:31]} 27. Qe1 {[%clk 0:01:25.1]} 27... Rc2 {[%clk
0:01:21.7]} 28. Nd4 {[%clk 0:01:23.7]} 28... Qd5 {[%clk 0:01:22]} 29. Nxc2
{[%clk 0:01:21.8]} 29... Rxc2 {[%clk 0:01:22.9]} 30. Rc1 {[%clk 0:01:22.6]}
30... Qxd2 {[%clk 0:01:17.1]} 31. Rxc2 {[%clk 0:01:12.4]} 31... Qxc2 {[%clk
0:01:16.4]} 32. Rc1 {[%clk 0:01:13.3]} 32... Qb2 {[%clk 0:00:49.5]} 33. Rc8+
{[%clk 0:01:14.2]} 33... Kf7 {[%clk 0:00:48.5]} 34. h3 {[%clk 0:01:09.7]} 34...
g5 {[%clk 0:00:22.3]} 35. Qg3 {[%clk 0:00:33.6]} 35... h6 {[%clk 0:00:20.4]} 36.
fxg5 {[%clk 0:00:30.9]} 36... hxg5 {[%clk 0:00:18.9]} 37. Qxg5 {[%clk
0:00:29.6]} 37... Qa1+ {[%clk 0:00:19.3]} 38. Rc1 {[%clk 0:00:26.5]} 38... Qxe5
{[%clk 0:00:19.6]} 39. Qe7+ {[%clk 0:00:27.1]} 39... Kg6 {[%clk 0:00:19.3]} 40.
Qxd7 {[%clk 0:00:27.6]} 40... Nh5 {[%clk 0:00:17.9]} 41. Qa7 {[%clk 0:00:25.9]}
41... Ng3+ {[%clk 0:00:16.9]} 42. Kg1 {[%clk 0:00:26.8]} 42... Ne2+ {[%clk
0:00:14.9]} 43. Kf2 {[%clk 0:00:25.9]} 43... Nxc1 {[%clk 0:00:14.9]} 44. d7
{[%clk 0:00:23.8]} 44... Nd3+ {[%clk 0:00:12.9]} 45. Kf3 {[%clk 0:00:24.7]}
45... Qe4+ {[%clk 0:00:11.6]} 46. Kg3 {[%clk 0:00:25.1]} 46... Qf4# {[%clk
0:00:12.1]} 0-1

[Event "*** SCC Grand Prix: Titled Tuesday Blitz"]
[Site "Chess.com"]
[Date "2020.08.11"]
[Round "7"]
[White "ethylalcohol"]
[Black "ailime26"]
[Result "1-0"]
[WhiteElo "2188"]
[BlackElo "1894"]
[TimeControl "180+1"]
[EndTime "11:17:53 PDT"]
[Termination "ethylalcohol won on time"]

1. d4 {[%clk 0:03:00.9]} 1... d5 {[%clk 0:01:19.7]} 2. Bf4 {[%clk 0:02:59.8]}
2... Bf5 {[%clk 0:01:18.2]} 3. e3 {[%clk 0:02:59.6]} 3... e6 {[%clk 0:01:18.1]}
4. Bd3 {[%clk 0:02:59.7]} 4... Bxd3 {[%clk 0:01:16.2]} 5. Qxd3 {[%clk
0:02:59.9]} 5... c5 {[%clk 0:01:17.1]} 6. Nf3 {[%clk 0:02:52.2]} 6... Nf6 {[%clk
0:01:16.6]} 7. Ne5 {[%clk 0:02:50.9]} 7... c4 {[%clk 0:01:13.3]} 8. Qe2 {[%clk
0:02:46.4]} 8... Bd6 {[%clk 0:01:10.2]} 9. O-O {[%clk 0:02:44.6]} 9... O-O
{[%clk 0:01:09.8]} 10. Nd2 {[%clk 0:02:41.9]} 10... Nc6 {[%clk 0:01:09.4]} 11.
c3 {[%clk 0:02:29.9]} 11... Qc7 {[%clk 0:01:06.8]} 12. Nxc6 {[%clk 0:02:27.7]}
12... Qxc6 {[%clk 0:01:04.6]} 13. Bg5 {[%clk 0:02:26.1]} 13... Be7 {[%clk
0:01:03.5]} 14. e4 {[%clk 0:02:21.3]} 14... dxe4 {[%clk 0:01:01.6]} 15. Nxc4
{[%clk 0:02:21.2]} 15... h6 {[%clk 0:00:56.5]} 16. Ne5 {[%clk 0:02:20.6]} 16...
Qd5 {[%clk 0:00:52.3]} 17. Be3 {[%clk 0:02:15.1]} 17... Bd6 {[%clk 0:00:47.2]}
18. Nc4 {[%clk 0:01:36.8]} 18... Bc7 {[%clk 0:00:37.5]} 19. Bd2 {[%clk
0:01:22.8]} 19... Qf5 {[%clk 0:00:32.8]} 20. Ne3 {[%clk 0:01:10.6]} 20... Qg6
{[%clk 0:00:27.5]} 21. f4 {[%clk 0:01:00.4]} 21... exf3 {[%clk 0:00:25.3]} 22.
Rxf3 {[%clk 0:00:59.1]} 22... Ne4 {[%clk 0:00:18.9]} 23. Raf1 {[%clk 0:00:53.3]}
23... Qh5 {[%clk 0:00:13.2]} 24. h3 {[%clk 0:00:46.2]} 24... Ng3 {[%clk
0:00:11.6]} 25. Qd3 {[%clk 0:00:35.8]} 25... Nxf1 {[%clk 0:00:08.1]} 26. Nxf1
{[%clk 0:00:33.2]} 26... Rad8 {[%clk 0:00:07.5]} 27. Qe4 {[%clk 0:00:32]} 27...
e5 {[%clk 0:00:06.2]} 28. Rf5 {[%clk 0:00:28.8]} 28... Qg6 {[%clk 0:00:05.7]}
29. dxe5 {[%clk 0:00:26.3]} 29... Bb6+ {[%clk 0:00:04.9]} 30. Kh2 {[%clk
0:00:23.4]} 30... Qe6 {[%clk 0:00:04.4]} 31. Qg4 {[%clk 0:00:13.9]} 31... Bc7
{[%clk 0:00:02.3]} 32. Bf4 {[%clk 0:00:11.5]} 32... Rd5 {[%clk 0:00:02.1]} 33.
Qg3 {[%clk 0:00:07.4]} 1-0

[Event "*** SCC Grand Prix: Titled Tuesday Blitz"]
[Site "Chess.com"]
[Date "2020.08.11"]
[Round "7"]
[White "sergeikim"]
[Black "AnonymousIM2023"]
[Result "0-1"]
[WhiteElo "2464"]
[BlackElo "2659"]
[TimeControl "180+1"]
[EndTime "11:17:54 PDT"]
[Termination "AnonymousIM2023 won on time"]

1. d4 {[%clk 0:03:00.9]} 1... c5 {[%clk 0:03:00.5]} 2. d5 {[%clk 0:03:00.3]}
2... Nf6 {[%clk 0:03:00.7]} 3. c4 {[%clk 0:02:58.8]} 3... e6 {[%clk 0:03:00.5]}
4. Nc3 {[%clk 0:02:57.9]} 4... exd5 {[%clk 0:03:00.8]} 5. cxd5 {[%clk
0:02:58.5]} 5... d6 {[%clk 0:03:01.4]} 6. e4 {[%clk 0:02:58.3]} 6... g6 {[%clk
0:03:01.9]} 7. Nge2 {[%clk 0:02:57.9]} 7... Bg7 {[%clk 0:03:01.8]} 8. Ng3 {[%clk
0:02:57.7]} 8... O-O {[%clk 0:03:02.3]} 9. Be2 {[%clk 0:02:57.4]} 9... Na6
{[%clk 0:03:01.9]} 10. O-O {[%clk 0:02:56.9]} 10... Rb8 {[%clk 0:03:01.9]} 11.
Bf4 {[%clk 0:02:52.8]} 11... Qe7 {[%clk 0:02:59.6]} 12. Qd2 {[%clk 0:02:48.7]}
12... Nc7 {[%clk 0:02:58.7]} 13. a4 {[%clk 0:02:46.6]} 13... Nd7 {[%clk
0:02:49.6]} 14. Bh6 {[%clk 0:02:38.3]} 14... a6 {[%clk 0:02:43.9]} 15. Bxg7
{[%clk 0:02:34.9]} 15... Kxg7 {[%clk 0:02:44.8]} 16. f4 {[%clk 0:02:34.9]} 16...
f6 {[%clk 0:02:26.3]} 17. e5 {[%clk 0:02:34.5]} 17... fxe5 {[%clk 0:02:25]} 18.
f5 {[%clk 0:02:34.9]} 18... Nf6 {[%clk 0:02:05.5]} 19. fxg6 {[%clk 0:02:11.1]}
19... hxg6 {[%clk 0:02:04.9]} 20. Qg5 {[%clk 0:01:55.5]} 20... Kh7 {[%clk
0:01:44.9]} 21. Qh4+ {[%clk 0:01:11.1]} 21... Kg8 {[%clk 0:01:42.4]} 22. Qg5
{[%clk 0:01:10.7]} 22... Qg7 {[%clk 0:01:27.6]} 23. Nge4 {[%clk 0:01:04.7]}
23... Nce8 {[%clk 0:01:04.2]} 24. Rf3 {[%clk 0:00:43]} 24... Bf5 {[%clk
0:00:59.5]} 25. Raf1 {[%clk 0:00:34.5]} 25... Nxe4 {[%clk 0:00:19.2]} 26. Nxe4
{[%clk 0:00:33.4]} 26... b5 {[%clk 0:00:19.4]} 27. axb5 {[%clk 0:00:30.2]} 27...
axb5 {[%clk 0:00:20.3]} 28. Ng3 {[%clk 0:00:30.1]} 28... Nc7 {[%clk 0:00:14.9]}
29. Nxf5 {[%clk 0:00:20.6]} 29... gxf5 {[%clk 0:00:15.3]} 30. Qh5 {[%clk
0:00:16.9]} 30... f4 {[%clk 0:00:14.5]} 31. Bd3 {[%clk 0:00:15]} 31... Nxd5
{[%clk 0:00:12.9]} 32. Rh3 {[%clk 0:00:14.3]} 32... Nf6 {[%clk 0:00:12.9]} 33.
Qf5 {[%clk 0:00:12.9]} 33... c4 {[%clk 0:00:05]} 34. Bc2 {[%clk 0:00:02.7]}
34... Rbe8 {[%clk 0:00:05.4]} 0-1

[Event "*** SCC Grand Prix: Titled Tuesday Blitz"]
[Site "Chess.com"]
[Date "2020.08.11"]
[Round "7"]
[White "xamax2000"]
[Black "Anton_Demchenko"]
[Result "0-1"]
[WhiteElo "2640"]
[BlackElo "2840"]
[TimeControl "180+1"]
[EndTime "11:17:55 PDT"]
[Termination "Anton_Demchenko won on time"]

1. e4 {[%clk 0:03:00.9]} 1... e5 {[%clk 0:02:59.7]} 2. Nf3 {[%clk 0:03:01.5]}
2... Nc6 {[%clk 0:03:00.3]} 3. Bb5 {[%clk 0:03:02.1]} 3... a6 {[%clk 0:03:00.9]}
4. Ba4 {[%clk 0:03:02.1]} 4... Nge7 {[%clk 0:03:00.8]} 5. d4 {[%clk 0:02:53]}
5... exd4 {[%clk 0:02:59.7]} 6. Nxd4 {[%clk 0:02:53.9]} 6... Nxd4 {[%clk
0:02:59.7]} 7. Qxd4 {[%clk 0:02:53.4]} 7... Nc6 {[%clk 0:03:00.4]} 8. Qe3 {[%clk
0:02:49.1]} 8... Bd6 {[%clk 0:02:58.5]} 9. O-O {[%clk 0:02:36.6]} 9... O-O
{[%clk 0:02:58.6]} 10. Nc3 {[%clk 0:02:10.2]} 10... Re8 {[%clk 0:02:58]} 11. f4
{[%clk 0:02:03.6]} 11... b6 {[%clk 0:02:45.6]} 12. Kh1 {[%clk 0:02:01.9]} 12...
Bb7 {[%clk 0:02:45.5]} 13. Rd1 {[%clk 0:01:42]} 13... Qh4 {[%clk 0:02:41.2]} 14.
Qg3 {[%clk 0:01:17.9]} 14... Qh5 {[%clk 0:02:11.7]} 15. Be3 {[%clk 0:01:11.2]}
15... b5 {[%clk 0:01:53.7]} 16. Bb3 {[%clk 0:00:21.7]} 16... Ne7 {[%clk
0:01:53.7]} 17. a3 {[%clk 0:00:17.5]} 17... Rad8 {[%clk 0:01:47.7]} 18. Rd2
{[%clk 0:00:17.1]} 18... a5 {[%clk 0:01:41.7]} 19. e5 {[%clk 0:00:13]} 19... Nf5
{[%clk 0:01:41.2]} 20. Qf2 {[%clk 0:00:13]} 20... Be7 {[%clk 0:01:29.9]} 21. Bd5
{[%clk 0:00:11.6]} 21... Bh4 {[%clk 0:01:26.9]} 22. Qe2 {[%clk 0:00:10]} 22...
Qxe2 {[%clk 0:01:21.9]} 23. Rxe2 {[%clk 0:00:10.9]} 23... c6 {[%clk 0:01:17.3]}
24. Bf3 {[%clk 0:00:10.6]} 24... Nxe3 {[%clk 0:01:12.7]} 25. Rxe3 {[%clk
0:00:10.9]} 25... d5 {[%clk 0:01:13.6]} 26. Rd1 {[%clk 0:00:08.6]} 26... d4
{[%clk 0:01:06.7]} 27. Red3 {[%clk 0:00:05.2]} 27... dxc3 {[%clk 0:01:07.2]} 28.
bxc3 {[%clk 0:00:05.4]} 28... Kf8 {[%clk 0:01:02]} 29. Rd7 {[%clk 0:00:04.3]}
29... Rxd7 {[%clk 0:00:59.7]} 30. Rxd7 {[%clk 0:00:05.2]} 30... Bc8 {[%clk
0:01:00.5]} 31. Rc7 {[%clk 0:00:05.3]} 31... Be6 {[%clk 0:00:58.6]} 32. Bxc6
{[%clk 0:00:04.5]} 32... Rc8 {[%clk 0:00:47.5]} 33. Rxc8+ {[%clk 0:00:04.3]}
33... Bxc8 {[%clk 0:00:48.4]} 34. Bxb5 {[%clk 0:00:05.1]} 34... Be1 {[%clk
0:00:35.4]} 35. c4 {[%clk 0:00:05]} 35... Bf5 {[%clk 0:00:36.1]} 36. Kg1 {[%clk
0:00:03.9]} 36... Bxc2 {[%clk 0:00:34.6]} 37. Kf1 {[%clk 0:00:04.3]} 37... Bd2
{[%clk 0:00:33.2]} 38. g3 {[%clk 0:00:04.5]} 38... Bd3+ {[%clk 0:00:33.6]} 39.
Kf2 {[%clk 0:00:04.2]} 39... Ke7 {[%clk 0:00:34.2]} 40. a4 {[%clk 0:00:02.6]}
40... h5 {[%clk 0:00:23.9]} 41. Kf3 {[%clk 0:00:02.8]} 41... g6 {[%clk 0:00:22]}
42. h3 {[%clk 0:00:02.6]} 42... Bf1 {[%clk 0:00:21.6]} 43. h4 {[%clk 0:00:01.6]}
43... Bb4 {[%clk 0:00:21.8]} 0-1

[Event "*** SCC Grand Prix: Titled Tuesday Blitz"]
[Site "Chess.com"]
[Date "2020.08.11"]
[Round "7"]
[White "Artur0208"]
[Black "UCantHandleDenker"]
[Result "1-0"]
[WhiteElo "2757"]
[BlackElo "2574"]
[TimeControl "180+1"]
[EndTime "11:17:56 PDT"]
[Termination "Artur0208 won on time"]

1. d4 {[%clk 0:03:00.9]} 1... d6 {[%clk 0:02:53.7]} 2. Nf3 {[%clk 0:03:00.1]}
2... Nf6 {[%clk 0:02:53.2]} 3. c4 {[%clk 0:02:59.5]} 3... Nbd7 {[%clk
0:02:52.9]} 4. Nc3 {[%clk 0:03:00]} 4... e5 {[%clk 0:02:53]} 5. e4 {[%clk
0:03:00.3]} 5... Be7 {[%clk 0:02:53]} 6. Be2 {[%clk 0:03:00.6]} 6... O-O {[%clk
0:02:53.1]} 7. O-O {[%clk 0:03:01.2]} 7... c6 {[%clk 0:02:53.7]} 8. Qc2 {[%clk
0:02:58.7]} 8... a6 {[%clk 0:02:52.8]} 9. a4 {[%clk 0:02:55.2]} 9... a5 {[%clk
0:02:52.3]} 10. b3 {[%clk 0:02:54.7]} 10... Qc7 {[%clk 0:02:52]} 11. h3 {[%clk
0:02:52.4]} 11... Re8 {[%clk 0:02:52.3]} 12. Be3 {[%clk 0:02:51.9]} 12... exd4
{[%clk 0:02:50.2]} 13. Nxd4 {[%clk 0:02:52.8]} 13... g6 {[%clk 0:02:48.7]} 14.
Rac1 {[%clk 0:02:51.3]} 14... Bf8 {[%clk 0:02:47.7]} 15. Rfe1 {[%clk 0:02:50.5]}
15... Nc5 {[%clk 0:02:47.5]} 16. Bf3 {[%clk 0:02:50.7]} 16... Bg7 {[%clk
0:02:46.3]} 17. Bf4 {[%clk 0:02:50.9]} 17... Nfd7 {[%clk 0:02:46]} 18. Rcd1
{[%clk 0:02:49.9]} 18... Ne5 {[%clk 0:02:45.6]} 19. Be2 {[%clk 0:02:48.1]} 19...
Qb6 {[%clk 0:02:44.7]} 20. Be3 {[%clk 0:02:45.8]} 20... Qc7 {[%clk 0:02:24]} 21.
f4 {[%clk 0:02:35.3]} 21... Ned7 {[%clk 0:02:22.5]} 22. Bf3 {[%clk 0:02:35.6]}
22... Na6 {[%clk 0:02:20.2]} 23. Bf2 {[%clk 0:02:32.7]} 23... Nb4 {[%clk
0:02:17.8]} 24. Qb1 {[%clk 0:02:32.9]} 24... Nc5 {[%clk 0:01:59.8]} 25. Rd2
{[%clk 0:02:28.2]} 25... f5 {[%clk 0:01:24.3]} 26. exf5 {[%clk 0:02:22.3]} 26...
Rxe1+ {[%clk 0:01:22.8]} 27. Qxe1 {[%clk 0:02:20.6]} 27... Bxf5 {[%clk
0:01:21.8]} 28. Nxf5 {[%clk 0:02:21.1]} 28... gxf5 {[%clk 0:01:22.2]} 29. Bxc5
{[%clk 0:01:24.4]} 29... dxc5 {[%clk 0:00:58.1]} 30. Qe6+ {[%clk 0:01:24.7]}
30... Qf7 {[%clk 0:00:54.2]} 31. Qxf7+ {[%clk 0:01:25]} 31... Kxf7 {[%clk
0:00:55.1]} 32. Rd7+ {[%clk 0:01:25.1]} 32... Kg6 {[%clk 0:00:44.3]} 33. Ne2
{[%clk 0:01:25.5]} 33... b6 {[%clk 0:00:24.3]} 34. g4 {[%clk 0:01:23.9]} 34...
Re8 {[%clk 0:00:21.3]} 35. gxf5+ {[%clk 0:01:19.6]} 35... Kf6 {[%clk 0:00:19.7]}
36. Ng3 {[%clk 0:01:19.8]} 36... Bh6 {[%clk 0:00:19.2]} 37. Rd6+ {[%clk
0:01:00.6]} 37... Kg7 {[%clk 0:00:18.9]} 38. Nh5+ {[%clk 0:01:00]} 38... Kf7
{[%clk 0:00:18.8]} 39. Rxh6 {[%clk 0:01:00.9]} 39... Re3 {[%clk 0:00:19.7]} 40.
Rxh7+ {[%clk 0:01:00.2]} 40... Kf8 {[%clk 0:00:19.9]} 41. Kf2 {[%clk 0:00:59.8]}
41... Rxb3 {[%clk 0:00:19.5]} 42. Be4 {[%clk 0:00:57.3]} 42... Rb2+ {[%clk
0:00:17.8]} 43. Kg3 {[%clk 0:00:56.9]} 43... Rb3+ {[%clk 0:00:18.6]} 44. Kg4
{[%clk 0:00:57.4]} 44... Re3 {[%clk 0:00:18.6]} 45. Nf6 {[%clk 0:00:54.5]} 45...
Na2 {[%clk 0:00:09.2]} 46. Bxc6 {[%clk 0:00:51.3]} 46... Nc3 {[%clk 0:00:09.1]}
47. Bd5 {[%clk 0:00:51.3]} 47... Nxd5 {[%clk 0:00:07.8]} 48. cxd5 {[%clk
0:00:52.2]} 48... c4 {[%clk 0:00:07.4]} 49. d6 {[%clk 0:00:52.5]} 49... c3
{[%clk 0:00:06]} 50. d7 {[%clk 0:00:51.5]} 50... Rd3 {[%clk 0:00:06.4]} 51. Kg5
{[%clk 0:00:51.3]} 51... c2 {[%clk 0:00:05.3]} 52. Kg6 {[%clk 0:00:48.3]} 52...
Rg3+ {[%clk 0:00:04.7]} 53. Ng4 {[%clk 0:00:47.5]} 53... Rd3 {[%clk 0:00:02.1]}
54. f6 {[%clk 0:00:47.4]} 1-0

[Event "*** SCC Grand Prix: Titled Tuesday Blitz"]
[Site "Chess.com"]
[Date "2020.08.11"]
[Round "7"]
[White "ItsCheckM8Mate"]
[Black "ThePatrick27"]
[Result "0-1"]
[WhiteElo "2322"]
[BlackElo "2472"]
[TimeControl "180+1"]
[EndTime "11:17:56 PDT"]
[Termination "ThePatrick27 won by resignation"]

1. e4 {[%clk 0:03:00.9]} 1... e5 {[%clk 0:02:59.4]} 2. Nf3 {[%clk 0:02:59.7]}
2... Nc6 {[%clk 0:02:59]} 3. Bb5 {[%clk 0:02:59.7]} 3... a6 {[%clk 0:02:58]} 4.
Ba4 {[%clk 0:02:59.9]} 4... Nf6 {[%clk 0:02:57.5]} 5. O-O {[%clk 0:02:59.3]}
5... Be7 {[%clk 0:02:54.6]} 6. Re1 {[%clk 0:02:58.9]} 6... b5 {[%clk 0:02:53.7]}
7. Bb3 {[%clk 0:02:58.9]} 7... O-O {[%clk 0:02:53.7]} 8. h3 {[%clk 0:02:57.5]}
8... Bb7 {[%clk 0:02:49.4]} 9. c3 {[%clk 0:02:42]} 9... d5 {[%clk 0:02:47.9]}
10. exd5 {[%clk 0:02:38.8]} 10... Nxd5 {[%clk 0:02:48.8]} 11. d3 {[%clk
0:02:30]} 11... Bf6 {[%clk 0:02:25.5]} 12. Nbd2 {[%clk 0:02:08.7]} 12... Nf4
{[%clk 0:02:23.8]} 13. Ne4 {[%clk 0:02:05]} 13... Nxd3 {[%clk 0:01:20.1]} 14.
Nxf6+ {[%clk 0:01:56]} 14... gxf6 {[%clk 0:01:21]} 15. Bh6 {[%clk 0:01:50.6]}
15... Re8 {[%clk 0:01:21]} 16. Nd4 {[%clk 0:01:14.4]} 16... Nf4 {[%clk
0:01:15.8]} 17. Qg4+ {[%clk 0:00:46]} 17... Ng6 {[%clk 0:01:14.1]} 18. Nf5
{[%clk 0:00:46]} 18... Ne7 {[%clk 0:01:02.1]} 19. Rad1 {[%clk 0:00:44.9]} 19...
Qc8 {[%clk 0:01:00.5]} 20. Bc2 {[%clk 0:00:40.2]} 20... Qe6 {[%clk 0:00:47.3]}
21. Nxe7+ {[%clk 0:00:33.2]} 21... Qxe7 {[%clk 0:00:43.2]} 22. Rd7 {[%clk
0:00:30.2]} 22... Qe6 {[%clk 0:00:38.9]} 23. Bf5 {[%clk 0:00:30.2]} 23... Qc6
{[%clk 0:00:39.1]} 24. Red1 {[%clk 0:00:25.9]} 24... Bc8 {[%clk 0:00:37.3]} 25.
R7d3 {[%clk 0:00:16.7]} 25... Bxf5 {[%clk 0:00:37.2]} 26. Qxf5 {[%clk
0:00:16.8]} 26... Qxg2+ {[%clk 0:00:36.4]} 27. Kxg2 {[%clk 0:00:15.8]} 27...
Nh4+ {[%clk 0:00:36.3]} 28. Kh2 {[%clk 0:00:15.3]} 28... Nxf5 {[%clk 0:00:37.2]}
29. Rg1+ {[%clk 0:00:13.5]} 29... Kh8 {[%clk 0:00:37.5]} 30. Be3 {[%clk
0:00:12.9]} 30... Rg8 {[%clk 0:00:37.5]} 31. Rxg8+ {[%clk 0:00:12.3]} 31... Kxg8
{[%clk 0:00:37.3]} 32. Rd7 {[%clk 0:00:13.2]} 32... Nxe3 {[%clk 0:00:37.1]} 33.
fxe3 {[%clk 0:00:13.3]} 33... Rc8 {[%clk 0:00:37.7]} 34. Kg3 {[%clk 0:00:13.1]}
34... Kf8 {[%clk 0:00:37.9]} 35. Kg4 {[%clk 0:00:12.4]} 35... Ke8 {[%clk
0:00:38.2]} 36. Rd1 {[%clk 0:00:11.8]} 36... Ke7 {[%clk 0:00:38.5]} 37. Kf5
{[%clk 0:00:11.4]} 37... Rg8 {[%clk 0:00:38.6]} 38. a4 {[%clk 0:00:08]} 38...
Rg3 {[%clk 0:00:38.2]} 39. Ke4 {[%clk 0:00:07.2]} 39... Rxh3 {[%clk 0:00:37.6]}
40. axb5 {[%clk 0:00:07.2]} 40... axb5 {[%clk 0:00:38]} 41. Rd5 {[%clk
0:00:07.6]} 41... c6 {[%clk 0:00:37.9]} 42. Rc5 {[%clk 0:00:06.4]} 42... Kd6
{[%clk 0:00:37.4]} 43. b4 {[%clk 0:00:07.1]} 43... Rg3 {[%clk 0:00:34.3]} 44.
Kf5 {[%clk 0:00:05.7]} 44... Rxe3 {[%clk 0:00:32.3]} 45. Kxf6 {[%clk 0:00:05.8]}
45... Rf3+ {[%clk 0:00:31.7]} 46. Kg5 {[%clk 0:00:05.8]} 46... f6+ {[%clk
0:00:31.2]} 0-1

[Event "*** SCC Grand Prix: Titled Tuesday Blitz"]
[Site "Chess.com"]
[Date "2020.08.11"]
[Round "7"]
[White "Isajevsky_Anton"]
[Black "OK97"]
[Result "1-0"]
[WhiteElo "2615"]
[BlackElo "2841"]
[TimeControl "180+1"]
[EndTime "11:17:57 PDT"]
[Termination "Isajevsky_Anton won by resignation"]

1. c4 {[%clk 0:03:00.9]} 1... g6 {[%clk 0:02:59.5]} 2. g3 {[%clk 0:03:00.5]}
2... Bg7 {[%clk 0:02:59.9]} 3. Bg2 {[%clk 0:03:01.2]} 3... d6 {[%clk 0:02:57.6]}
4. Nc3 {[%clk 0:03:01.5]} 4... Nf6 {[%clk 0:02:56.9]} 5. e4 {[%clk 0:02:58.8]}
5... O-O {[%clk 0:02:57.2]} 6. Nge2 {[%clk 0:02:58.7]} 6... c6 {[%clk 0:02:53]}
7. O-O {[%clk 0:02:58.6]} 7... a6 {[%clk 0:02:53.5]} 8. a4 {[%clk 0:02:41.5]}
8... a5 {[%clk 0:02:52]} 9. h3 {[%clk 0:02:40.7]} 9... Na6 {[%clk 0:02:52.1]}
10. d3 {[%clk 0:02:38.9]} 10... Nb4 {[%clk 0:02:41.3]} 11. f4 {[%clk 0:02:35.3]}
11... Nd7 {[%clk 0:02:22]} 12. Na2 {[%clk 0:02:04.5]} 12... f5 {[%clk
0:02:03.9]} 13. exf5 {[%clk 0:01:49.9]} 13... gxf5 {[%clk 0:02:03.7]} 14. Nxb4
{[%clk 0:01:49.4]} 14... axb4 {[%clk 0:02:04.6]} 15. d4 {[%clk 0:01:49.6]} 15...
Nf6 {[%clk 0:01:42.4]} 16. b3 {[%clk 0:01:40.1]} 16... Ne4 {[%clk 0:01:36.4]}
17. Qd3 {[%clk 0:01:37]} 17... d5 {[%clk 0:01:23.4]} 18. Be3 {[%clk 0:01:26.4]}
18... Be6 {[%clk 0:01:23.1]} 19. c5 {[%clk 0:01:20.2]} 19... Kh8 {[%clk
0:01:20.7]} 20. Kh2 {[%clk 0:01:19.7]} 20... Rg8 {[%clk 0:01:18.1]} 21. Ng1
{[%clk 0:00:53.4]} 21... Bf6 {[%clk 0:01:12.2]} 22. Bf2 {[%clk 0:00:52.2]} 22...
Qf8 {[%clk 0:01:01.3]} 23. Nf3 {[%clk 0:00:49.7]} 23... Qh6 {[%clk 0:00:59.1]}
24. Ne5 {[%clk 0:00:43.9]} 24... Rg7 {[%clk 0:00:59.3]} 25. Be1 {[%clk
0:00:38.5]} 25... Rag8 {[%clk 0:00:55.7]} 26. Rf3 {[%clk 0:00:37.7]} 26... Qh5
{[%clk 0:00:39.2]} 27. a5 {[%clk 0:00:32.1]} 27... Bxe5 {[%clk 0:00:32.8]} 28.
fxe5 {[%clk 0:00:19.8]} 28... f4 {[%clk 0:00:31.9]} 29. Rxf4 {[%clk 0:00:16.7]}
29... Nxg3 {[%clk 0:00:25.9]} 30. Bxg3 {[%clk 0:00:14.9]} 30... Rxg3 {[%clk
0:00:26]} 31. Qxg3 {[%clk 0:00:15.8]} 31... Rxg3 {[%clk 0:00:24.9]} 32. Kxg3
{[%clk 0:00:16.7]} 32... Qg5+ {[%clk 0:00:24.3]} 33. Kf3 {[%clk 0:00:16.8]}
33... Bf5 {[%clk 0:00:24.8]} 34. Bh1 {[%clk 0:00:05.5]} 34... Be4+ {[%clk
0:00:21.8]} 35. Ke3 {[%clk 0:00:05.9]} 35... Qg3+ {[%clk 0:00:14.3]} 36. Bf3
{[%clk 0:00:06.1]} 36... Kg7 {[%clk 0:00:07.9]} 37. Rg4+ {[%clk 0:00:05.1]} 1-0